fUST/lending_fUST_20250514
["ID","MTS","AMOUNT","RATE_DAILY","PERIOD"]
[360969811,1747171836315,-357.46546862,0.00013698,2]
[360969812,1747171836324,-400.0,0.00013698,2]
[360969813,1747171836334,-400.63,0.00013698,2]
[360969814,1747171836343,-400.0,0.00013698,2]
[360969815,1747171836352,-400.0,0.00013698,2]
[360969816,1747171836362,-400.0,0.00013698,2]
[360969817,1747171836371,-2082.85,0.00013698,2]
[360969818,1747171836381,-402.7164939,0.00013698,2]
[360969819,1747171836391,-400.0,0.00013698,2]
[360969820,1747171836401,-400.0,0.00013698,2]
[360969821,1747171836411,-400.0,0.00013698,2]
[360969822,1747171836420,-1700.28,0.00013698,2]
[360969823,1747171836430,-411.9604569,0.00013698,2]
[360969824,1747171836439,-400.0,0.00013698,2]
[360969825,1747171836449,-404.66,0.00013698,2]
[360969826,1747171836459,-400.0,0.00013698,2]
[360969827,1747171836468,-275.89113,0.00013698,2]
[360969828,1747171836477,-498.37,0.00013698,2]
[360969829,1747171836486,-400.0,0.00013698,2]
[360969830,1747171836496,-508.09,0.00013698,2]
[360969831,1747171836505,-400.0,0.00013698,2]
[360969832,1747171836515,-400.0,0.00013698,2]
[360969833,1747171836525,-1219.22,0.00013698,2]
[360969834,1747171836536,-400.0,0.00013698,2]
[360969835,1747171836546,-400.0,0.00013698,2]
[360969836,1747171836555,-400.0,0.00013698,2]
[360969837,1747171836565,-2779.5,0.00013698,2]
[360969838,1747171836575,-400.0,0.00013698,2]
[360969839,1747171836584,-400.0,0.00013698,2]
[360969840,1747171836593,-400.0,0.00013698,2]
[360969841,1747171836603,-400.0,0.00013698,2]
[360969842,1747171836613,-400.0,0.00013698,2]
[360969843,1747171836622,-400.0,0.00013698,2]
[360969844,1747171836632,-400.0,0.00013698,2]
[360969845,1747171836641,-654.77,0.00013698,2]
[360969846,1747171836651,-400.0,0.00013698,2]
[360969847,1747171836660,-400.0,0.00013698,2]
[360969848,1747171836671,-400.0,0.00013698,2]
[360969849,1747171836680,-400.0,0.00013698,2]
[360969850,1747171836690,-400.0,0.00013698,2]
[360969851,1747171836700,-155.0,0.00013698,2]
[360969852,1747171836711,-1011.29,0.00013698,2]
[360969853,1747171836720,-400.0,0.00013698,2]
[360969854,1747171836731,-151.0,0.00013698,2]
[360969855,1747171836741,-151.0,0.00013698,2]
[360969856,1747171836752,-151.0,0.00013698,2]
[360969857,1747171836762,-151.0,0.00013698,2]
[360969858,1747171836771,-151.0,0.00013698,2]
[360969859,1747171836781,-151.0,0.00013698,2]
[360969860,1747171836790,-151.0,0.00013698,2]
[360969861,1747171836800,-151.0,0.00013698,2]
[360969862,1747171836810,-400.0,0.00013698,2]
[360969863,1747171836819,-151.0,0.00013698,2]
[360969864,1747171836829,-193.693084,0.00013698,2]
[360969865,1747171836839,-257.348452,0.00013698,2]
[360969866,1747171836850,-400.0,0.00013698,2]
[360969867,1747171836868,-283.578443,0.00013698,2]
[360969868,1747171836878,-283.578443,0.00013698,2]
[360969869,1747171836888,-283.578443,0.00013698,2]
[360969870,1747171836899,-283.578443,0.00013698,2]
[360969871,1747171836908,-283.578443,0.00013698,2]
[360969872,1747171836918,-400.0,0.00013698,2]
[360969873,1747171836929,-400.0,0.00013698,2]
[360969874,1747171836939,-283.578443,0.00013698,2]
[360969875,1747171836949,-283.578443,0.00013698,2]
[360969876,1747171836958,-283.578443,0.00013698,2]
[360969877,1747171836968,-400.0,0.00013698,2]
[360969878,1747171836978,-400.0,0.00013698,2]
[360969879,1747171836987,-283.578443,0.00013698,2]
[360969880,1747171836996,-206.79581561,0.00013698,2]
[360969881,1747171837006,-283.578443,0.00013698,2]
[360969882,1747171837015,-400.0,0.00013698,2]
[360969883,1747171837025,-400.0,0.00013698,2]
[360969884,1747171837035,-151.0,0.00013698,2]
[360969885,1747171837045,-151.0,0.00013698,2]
[360969886,1747171837055,-400.0,0.00013698,2]
[360969887,1747171837065,-400.0,0.00013698,2]
[360969888,1747171837074,-151.0,0.00013698,2]
[360969889,1747171837084,-151.0,0.00013698,2]
[360969890,1747171837095,-400.0,0.00013698,2]
[360969891,1747171837105,-151.0,0.00013698,2]
[360969892,1747171837114,-400.0,0.00013698,2]
[360969893,1747171837125,-151.0,0.00013698,2]
[360969894,1747171837135,-151.0,0.00013698,2]
[360969895,1747171837145,-400.0,0.00013698,2]
[360969896,1747171837155,-400.0,0.00013698,2]
[360969897,1747171837167,-400.0,0.00013698,2]
[360969898,1747171837176,-1757.96,0.00013698,2]
[360969899,1747171837186,-400.0,0.00013698,2]
[360969900,1747171837196,-400.0,0.00013698,2]
[360969901,1747171837205,-828.55,0.00013698,2]
[360969902,1747171837216,-639.16,0.00013698,2]
[360969903,1747171837225,-400.0,0.00013698,2]
[360969904,1747171837236,-400.0,0.00013698,2]
[360969905,1747171837245,-910.85,0.00013698,2]
[360969906,1747171837255,-400.0,0.00013698,2]
[360969907,1747171837265,-400.0,0.00013698,2]
[360969908,1747171837275,-400.0,0.00013698,2]
[360969909,1747171837285,-1432.24,0.00013698,2]
[360969910,1747171837295,-400.0,0.00013698,2]
[360969911,1747171837305,-151.0,0.00013698,2]
[360969912,1747171837316,-151.0,0.00013698,2]
[360969914,1747171837326,-151.0,0.00013698,2]
[360969916,1747171837336,-151.0,0.00013698,2]
[360969917,1747171837346,-400.0,0.00013698,2]
[360969921,1747171837356,-151.0,0.00013698,2]
[360969923,1747171837366,-151.0,0.00013698,2]
[360969924,1747171837376,-400.67,0.00013698,2]
[360969925,1747171837387,-151.0,0.00013698,2]
[360969926,1747171837397,-156.005878,0.00013698,2]
[360969927,1747171837407,-1271.55,0.00013698,2]
[360969928,1747171837416,-400.0,0.00013698,2]
[360969929,1747171837426,-400.0,0.00013698,2]
[360969931,1747171837435,-400.0,0.00013698,2]
[360969932,1747171837446,-400.0,0.00013698,2]
[360969933,1747171837456,-951.73,0.00013698,2]
[360969934,1747171837466,-400.0,0.00013698,2]
[360969935,1747171837475,-1964.72,0.00013698,2]
[360969936,1747171837485,-400.0,0.00013698,2]
[360969937,1747171837498,-400.0,0.00013698,2]
[360969938,1747171837508,-400.0,0.00013698,2]
[360969939,1747171837518,-314.915783,0.00013698,2]
[360969940,1747171837527,-314.915783,0.00013698,2]
[360969941,1747171837537,-314.915783,0.00013698,2]
[360969942,1747171837547,-314.915783,0.00013698,2]
[360969943,1747171837557,-1346.18,0.00013698,2]
[360969944,1747171837567,-314.915783,0.00013698,2]
[360969945,1747171837578,-314.915783,0.00013698,2]
[360969946,1747171837587,-400.0,0.00013698,2]
[360969947,1747171837597,-400.0,0.00013698,2]
[360969948,1747171837607,-400.0,0.00013698,2]
[360969949,1747171837617,-314.915783,0.00013698,2]
[360969950,1747171837627,-314.915783,0.00013698,2]
[360969951,1747171837637,-400.0,0.00013698,2]
[360969952,1747171837648,-314.915783,0.00013698,2]
[360969953,1747171837658,-1807.95,0.00013698,2]
[360969954,1747171837668,-314.915783,0.00013698,2]
[360969955,1747171837677,-314.915783,0.00013698,2]
[360969956,1747171837688,-314.915783,0.00013698,2]
[360969957,1747171837698,-1872.93,0.00013698,2]
[360969958,1747171837709,-400.0,0.00013698,2]
[360969959,1747171837719,-2038.91,0.00013698,2]
[360969960,1747171837730,-583.95,0.00013698,2]
[360969961,1747171837740,-400.0,0.00013698,2]
[360969962,1747171837750,-151.0,0.00013698,2]
[360969963,1747171837759,-400.0,0.00013698,2]
[360969964,1747171837769,-151.0,0.00013698,2]
[360969965,1747171837779,-400.0,0.00013698,2]
[360969966,1747171837789,-151.0,0.00013698,2]
[360969968,1747171837798,-400.0,0.00013698,2]
[360969969,1747171837808,-151.0,0.00013698,2]
[360969970,1747171837818,-151.0,0.00013698,2]
[360969971,1747171837828,-151.0,0.00013698,2]
[360969972,1747171837837,-444.52,0.00013698,2]
[360969973,1747171837849,-400.0,0.00013698,2]
[360969974,1747171837860,-400.0,0.00013698,2]
[360969976,1747171837870,-777.75,0.00013698,2]
[360969977,1747171837880,-1133.72,0.00013698,2]
[360969978,1747171837891,-400.0,0.00013698,2]
[360969979,1747171837900,-151.0,0.00013698,2]
[360969980,1747171837910,-151.0,0.00013698,2]
[360969981,1747171837920,-151.0,0.00013698,2]
[360969982,1747171837930,-151.0,0.00013698,2]
[360969983,1747171837940,-400.0,0.00013698,2]
[360969984,1747171837950,-172.426071,0.00013698,2]
[360969985,1747171837959,-1278.45,0.00013698,2]
[360969986,1747171837969,-400.0,0.00013698,2]
[360969987,1747171837978,-2383.74,0.00013698,2]
[360969988,1747171837988,-400.0,0.00013698,2]
[360969989,1747171837998,-400.0,0.00013698,2]
[360969990,1747171838008,-1367.7,0.00013698,2]
[360969991,1747171838019,-2669.62,0.00013698,2]
[360969992,1747171838028,-400.0,0.00013698,2]
[360969993,1747171838038,-400.0,0.00013698,2]
[360969994,1747171838048,-2642.98,0.00013698,2]
[360969995,1747171838058,-151.0,0.00013698,2]
[360969996,1747171838068,-1343.88,0.00013698,2]
[360969997,1747171838079,-151.0,0.00013698,2]
[360969998,1747171838088,-151.0,0.00013698,2]
[360969999,1747171838098,-400.0,0.00013698,2]
[360970000,1747171838108,-6469.5,0.00013698,2]
[360970001,1747171838117,-400.0,0.00013698,2]
[360970002,1747171838128,-151.0,0.00013698,2]
[360970003,1747171838137,-151.0,0.00013698,2]
[360970004,1747171838147,-151.0,0.00013698,2]
[360970005,1747171838157,-151.0,0.00013698,2]
[360970006,1747171838167,-151.0,0.00013698,2]
[360970007,1747171838177,-400.0,0.00013698,2]
[360970008,1747171838186,-400.0,0.00013698,2]
[360970009,1747171838196,-1188.47,0.00013698,2]
[360970010,1747171838206,-151.0,0.00013698,2]
[360970011,1747171838216,-400.0,0.00013698,2]
[360970012,1747171838226,-151.0,0.00013698,2]
[360970013,1747171838237,-400.0,0.00013698,2]
[360970014,1747171838254,-151.0,0.00013698,2]
[360970015,1747171838264,-151.0,0.00013698,2]
[360970016,1747171838274,-151.0,0.00013698,2]
[360970017,1747171838283,-151.0,0.00013698,2]
[360970018,1747171838294,-151.0,0.00013698,2]
[360970019,1747171838304,-151.0,0.00013698,2]
[360970020,1747171838314,-151.0,0.00013698,2]
[360970021,1747171838324,-1336.58,0.00013698,2]
[360970022,1747171838335,-400.0,0.00013698,2]
[360970023,1747171838345,-154.983496,0.00013698,2]
[360970024,1747171838355,-400.0,0.00013698,2]
[360970025,1747171838367,-400.0,0.00013698,2]
[360970026,1747171838377,-151.0,0.00013698,2]
[360970027,1747171838387,-400.0,0.00013698,2]
[360970028,1747171838480,-400.0,0.00013698,2]
[360970029,1747171838490,-400.0,0.00013698,2]
[360970030,1747171838500,-451.71,0.00013698,2]
[360970031,1747171838509,-400.0,0.00013698,2]
[360970032,1747171838519,-531.31,0.00013698,2]
[360970033,1747171838528,-443.98,0.00013698,2]
[360970034,1747171838539,-405.74,0.00013698,2]
[360970035,1747171838549,-400.0,0.00013698,2]
[360970036,1747171838557,-400.0,0.00013698,2]
[360970037,1747171838571,-1336.54,0.00013698,2]
[360970038,1747171838580,-400.0,0.00013698,2]
[360970039,1747171838589,-733.54,0.00013698,2]
[360970040,1747171838598,-602.94,0.00013698,2]
[360970041,1747171838607,-400.0,0.00013698,2]
[360970042,1747171838617,-1080.08,0.00013698,2]
[360970043,1747171838626,-443.19,0.00013698,2]
[360970044,1747171838636,-400.0,0.00013698,2]
[360970045,1747171838646,-420.67,0.00013698,2]
[360970046,1747171838656,-400.0,0.00013698,2]
[360970047,1747171838666,-400.0,0.00013698,2]
[360970048,1747171838676,-693.78,0.00013698,2]
[360970049,1747171838685,-1431.64,0.00013698,2]
[360970050,1747171838695,-400.0,0.00013698,2]
[360970051,1747171838705,-400.0,0.00013698,2]
[360970052,1747171838714,-654.02,0.00013698,2]
[360970053,1747171838724,-1357.77,0.00013698,2]
[360970054,1747171838733,-1212.64,0.00013698,2]
[360970055,1747171838743,-400.0,0.00013698,2]
[360970056,1747171838752,-400.0,0.00013698,2]
[360970057,1747171838762,-2979.51,0.00013698,2]
[360970058,1747171838771,-400.0,0.00013698,2]
[360970059,1747171838781,-400.0,0.00013698,2]
[360970060,1747171838790,-791.3,0.00013698,2]
[360970061,1747171838799,-400.0,0.00013698,2]
[360970062,1747171838809,-6691.48,0.00013698,2]
[360970063,1747171838818,-400.0,0.00013698,2]
[360970064,1747171838828,-3240.36,0.00013698,2]
[360970065,1747171838837,-400.0,0.00013698,2]
[360970066,1747171838847,-796.34,0.00013698,2]
[360970067,1747171838860,-1457.87,0.00013698,2]
[360970068,1747171838869,-151.0,0.00013698,2]
[360970069,1747171838878,-400.0,0.00013698,2]
[360970070,1747171838888,-321.72805502,0.00013698,2]
[360970071,1747171838899,-151.0,0.00013698,2]
[360970072,1747171838909,-151.0,0.00013698,2]
[360970073,1747171838919,-151.0,0.00013698,2]
[360970074,1747171838929,-400.0,0.00013698,2]
[360970075,1747171838939,-151.0,0.00013698,2]
[360970076,1747171838949,-1151.93,0.00013698,2]
[360970077,1747171838958,-400.0,0.00013698,2]
[360970078,1747171838968,-1965.01,0.00013698,2]
[360970079,1747171838977,-575.28,0.00013698,2]
[360970080,1747171838987,-571.86,0.00013698,2]
[360970081,1747171838996,-400.0,0.00013698,2]
[360970082,1747171839005,-1151.88,0.00013698,2]
[360970083,1747171839016,-523.95,0.00013698,2]
[360970084,1747171839025,-2254.02,0.00013698,2]
[360970085,1747171839035,-780.64,0.00013698,2]
[360970086,1747171839046,-885.61,0.00013698,2]
[360970087,1747171839055,-400.0,0.00013698,2]
[360970088,1747171839064,-400.0,0.00013698,2]
[360970089,1747171839074,-183.62460969,0.00013698,2]
[360970090,1747171839083,-1896.51,0.00013698,2]
[360970091,1747171839092,-151.0,0.00013698,2]
[360970092,1747171839102,-187.892934,0.00013698,2]
[360970093,1747171839111,-1446.73,0.00013698,2]
[360970094,1747171839121,-400.0,0.00013698,2]
[360970095,1747171839130,-352.86219687,0.00013698,2]
[360970096,1747171839139,-400.0,0.00013698,2]
[360970097,1747171839149,-151.0,0.00013698,2]
[360970098,1747171839159,-151.0,0.00013698,2]
[360970099,1747171839168,-400.0,0.00013698,2]
[360970100,1747171839178,-151.0,0.00013698,2]
[360970101,1747171839187,-400.0,0.00013698,2]
[360970102,1747171839197,-151.0,0.00013698,2]
[360970103,1747171839207,-400.0,0.00013698,2]
[360970104,1747171839216,-151.0,0.00013698,2]
[360970105,1747171839226,-2969.24,0.00013698,2]
[360970107,1747171839235,-761.95,0.00013698,2]
[360970109,1747171839245,-3596.39,0.00013698,2]
[360970111,1747171839256,-2929.92,0.00013698,2]
[360970113,1747171839265,-400.0,0.00013698,2]
[360970115,1747171839275,-151.0,0.00013698,2]
[360970117,1747171839284,-400.0,0.00013698,2]
[360970119,1747171839294,-400.0,0.00013698,2]
[360970121,1747171839303,-629.36,0.00013698,2]
[360970123,1747171839313,-151.0,0.00013698,2]
[360970124,1747171839322,-151.0,0.00013698,2]
[360970126,1747171839332,-151.0,0.00013698,2]
[360970128,1747171839342,-400.0,0.00013698,2]
[360970129,1747171839351,-190.345358,0.00013698,2]
[360970130,1747171839360,-6035.7,0.00013698,2]
[360970131,1747171839370,-2648.74,0.00013698,2]
[360970132,1747171839379,-152.66643554,0.00013698,2]
[360970134,1747171839389,-400.0,0.00013698,2]
[360970135,1747171839399,-720.33,0.00013698,2]
[360970136,1747171839409,-160.0,0.00013698,2]
[360970137,1747171839418,-1698.59,0.00013698,2]
[360970138,1747171839427,-904.66,0.00013698,2]
[360970139,1747171839437,-500.0,0.00013698,2]
[360970140,1747171839446,-400.0,0.00013698,2]
[360970141,1747171839456,-470.42855279,0.00013698,2]
[360970142,1747171839465,-458.91,0.00013698,2]
[360970143,1747171839475,-400.0,0.00013698,2]
[360970144,1747171839485,-488.71,0.00013698,2]
[360970145,1747171839495,-4244.97,0.00013698,2]
[360970146,1747171839505,-400.0,0.00013698,2]
[360970147,1747171839515,-400.0,0.00013698,2]
[360970148,1747171839525,-400.0,0.00013698,2]
[360970149,1747171839534,-400.0,0.00013698,2]
[360970150,1747171839543,-408.43,0.00013698,2]
[360970152,1747171839553,-424.56,0.00013698,2]
[360970153,1747171839563,-400.0,0.00013698,2]
[360970154,1747171839571,-400.0,0.00013698,2]
[360970155,1747171839581,-400.0,0.00013698,2]
[360970156,1747171839590,-832.4,0.00013698,2]
[360970157,1747171839601,-400.0,0.00013698,2]
[360970158,1747171839610,-593.97,0.00013698,2]
[360970159,1747171839619,-400.0,0.00013698,2]
[360970160,1747171839629,-687.37,0.00013698,2]
[360970161,1747171839638,-933.65,0.00013698,2]
[360970162,1747171839648,-7895.42,0.00013698,2]
[360970163,1747171839658,-729.98,0.00013698,2]
[360970164,1747171839667,-781.28,0.00013698,2]
[360970165,1747171839677,-508.61,0.00013698,2]
[360970166,1747171839686,-404.9637119,0.00013698,2]
[360970167,1747171839696,-400.0,0.00013698,2]
[360970168,1747171839706,-400.0,0.00013698,2]
[360970169,1747171839719,-1748.5,0.00013698,2]
[360970170,1747171839728,-400.0,0.00013698,2]
[360970171,1747171839737,-400.0,0.00013698,2]
[360970172,1747171839747,-968.62,0.00013698,2]
[360970173,1747171839756,-2237.52,0.00013698,2]
[360970174,1747171839766,-400.0,0.00013698,2]
[360970175,1747171839776,-400.0,0.00013698,2]
[360970176,1747171839785,-400.0,0.00013698,2]
[360970177,1747171839794,-400.0,0.00013698,2]
[360970178,1747171839803,-948.76,0.00013698,2]
[360970179,1747171839812,-12091.79,0.00013698,2]
[360970180,1747171839822,-400.0,0.00013698,2]
[360970181,1747171839831,-400.0,0.00013698,2]
[360970182,1747171839840,-3495.32,0.00013698,2]
[360970183,1747171839852,-400.0,0.00013698,2]
[360970184,1747171839861,-400.0,0.00013698,2]
[360970185,1747171839871,-4347.15,0.00013698,2]
[360970186,1747171839881,-1362.33,0.00013698,2]
[360970187,1747171839889,-789.92,0.00013698,2]
[360970188,1747171839901,-400.0,0.00013698,2]
[360970189,1747171839910,-400.0,0.00013698,2]
[360970190,1747171839919,-400.0,0.00013698,2]
[360970191,1747171839929,-400.0,0.00013698,2]
[360970192,1747171839939,-400.0,0.00013698,2]
[360970193,1747171839948,-400.0,0.00013698,2]
[360970194,1747171839958,-400.0,0.00013698,2]
[360970195,1747171839968,-400.0,0.00013698,2]
[360970196,1747171839977,-907.61,0.00013698,2]
[360970197,1747171839987,-1962.79,0.00013698,2]
[360970198,1747171839997,-400.0,0.00013698,2]
[360970199,1747171840007,-400.0,0.00013698,2]
[360970200,1747171840018,-2729.47,0.00013698,2]
[360970201,1747171840029,-400.0,0.00013698,2]
[360970202,1747171840039,-400.0,0.00013698,2]
[360970203,1747171840048,-400.0,0.00013698,2]
[360970204,1747171840058,-408.91641247,0.00013698,2]
[360970205,1747171840067,-376.36584679,0.00013698,2]
[360970206,1747171840077,-400.0,0.00013698,2]
[360970207,1747171840086,-400.0,0.00013698,2]
[360970208,1747171840096,-657.59,0.00013698,2]
[360970209,1747171840105,-7706.43,0.00013698,2]
[360970210,1747171840114,-400.0,0.00013698,2]
[360970212,1747171840124,-1074.08,0.00013698,2]
[360970214,1747171840134,-1148.33,0.00013698,2]
[360970215,1747171840143,-1148.33,0.00013698,2]
[360970217,1747171840154,-1148.33,0.00013698,2]
[360970219,1747171840163,-1148.33,0.00013698,2]
[360970221,1747171840172,-400.0,0.00013698,2]
[360970222,1747171840181,-1148.33,0.00013698,2]
[360970223,1747171840191,-1148.33,0.00013698,2]
[360970224,1747171840200,-2264.38,0.00013698,2]
[360970225,1747171840210,-1148.33,0.00013698,2]
[360970226,1747171840219,-1148.33,0.00013698,2]
[360970227,1747171840228,-400.0,0.00013698,2]
[360970228,1747171840237,-400.0,0.00013698,2]
[360970229,1747171840247,-1148.33,0.00013698,2]
[360970230,1747171840256,-1148.33,0.00013698,2]
[360970231,1747171840266,-1148.33,0.00013698,2]
[360970232,1747171840275,-400.0,0.00013698,2]
[360970233,1747171840284,-1148.33,0.00013698,2]
[360970235,1747171840293,-1148.33,0.00013698,2]
[360970236,1747171840303,-1148.33,0.00013698,2]
[360970237,1747171840312,-400.0,0.00013698,2]
[360970238,1747171840321,-1148.33,0.00013698,2]
[360970239,1747171840330,-1148.33,0.00013698,2]
[360970240,1747171840340,-1148.33,0.00013698,2]
[360970241,1747171840349,-400.0,0.00013698,2]
[360970242,1747171840358,-179.91004498,0.00013699,2]
[360970243,1747171840367,-414.985771,0.00013699,2]
[360970244,1747171840376,-151.0,0.00013699,2]
[360970245,1747171840386,-151.0,0.00013699,2]
[360970246,1747171840395,-151.0,0.00013699,2]
[360970247,1747171840405,-151.0,0.00013699,2]
[360970248,1747171840415,-151.0,0.00013699,2]
[360970249,1747171840424,-151.0,0.00013699,2]
[360970250,1747171840433,-151.0,0.00013699,2]
[360970251,1747171840442,-151.0,0.00013699,2]
[360970252,1747171840451,-230.193026,0.00013699,2]
[360970253,1747171840460,-500.0,0.00013699,2]
[360970254,1747171840470,-500.0,0.00013699,2]
[360970255,1747171840480,-204.49894397,0.00013699,2]
[360970256,1747171840490,-151.0,0.000137,2]
[360970257,1747171840499,-151.0,0.000137,2]
[360970258,1747171840508,-151.0,0.000137,2]
[360970259,1747171840518,-151.0,0.000137,2]
[360970260,1747171840528,-151.0,0.000137,2]
[360970261,1747171840537,-151.0,0.000137,2]
[360970262,1747171840546,-151.0,0.000137,2]
[360970263,1747171840556,-151.0,0.000137,2]
[360970264,1747171840565,-283.578443,0.000137,2]
[360970265,1747171840575,-283.578443,0.000137,2]
[360970266,1747171840585,-151.0,0.000137,2]
[360970267,1747171840595,-151.0,0.000137,2]
[360970268,1747171840605,-314.915783,0.000137,2]
[360970269,1747171840616,-314.915783,0.000137,2]
[360970270,1747171840627,-280.424657,0.000137,2]
[360970271,1747171840637,-151.0,0.000137,2]
[360970272,1747171840646,-18703.07790972,0.000137,2]
[360970273,1747171840656,-18703.07790945,0.000137,2]
[360970274,1747171840666,-160.95,0.00013753,2]
[360970275,1747171840676,-176.818,0.000138,2]
[360970276,1747171840686,-151.0,0.000139,2]
[360970277,1747171840696,-170.871028,0.00013907,7]
[360970278,1747171840705,-18703.07790945,0.00013934,2]
[360970279,1747171840715,-3727.2,0.00013971,2]
[360970280,1747171840725,-3727.2,0.00013971,2]
[360970281,1747171840735,-151.0,0.00013971,2]
[360970282,1747171840744,-151.0,0.00013971,2]
[360970283,1747171840754,-283.578443,0.00013971,2]
[360970284,1747171840763,-283.578443,0.00013971,2]
[360970285,1747171840774,-314.915783,0.00013971,2]
[360970286,1747171840783,-314.915783,0.00013971,2]
[360970287,1747171840793,-3069.63,0.00013971,2]
[360970288,1747171840809,-1733.83,0.00013971,2]
[360970289,1747171840821,-151.0,0.00013971,2]
[360970290,1747171840831,-151.0,0.00013971,2]
[360970291,1747171840842,-212.19047112,0.00013971,3]
[360970292,1747171840853,-90851.30916867,0.00013972,2]
[360970293,1747171840864,-400.0,0.00013972,2]
[360970294,1747171840875,-400.0,0.00013972,2]
[360970295,1747171840886,-467.43651514,0.00013972,2]
[360970296,1747171840896,-400.0,0.00013972,2]
[360970297,1747171840906,-400.0,0.00013972,2]
[360970298,1747171840916,-400.0,0.00013972,2]
[360970299,1747171840926,-400.0,0.00013972,2]
[360970300,1747171840936,-400.0,0.00013972,2]
[360970301,1747171840946,-400.0,0.00013972,2]
[360970302,1747171840956,-400.0,0.00013972,2]
[360970303,1747171840966,-702.95,0.00013972,2]
[360970304,1747171840975,-168.56982998,0.00013972,2]
[360970305,1747171840985,-400.0,0.00013972,2]
[360970306,1747171840996,-400.0,0.00013972,2]
[360970307,1747171841006,-400.0,0.00013972,2]
[360970308,1747171841017,-400.0,0.00013972,2]
[360970309,1747171841026,-654.93,0.00013972,2]
[360970310,1747171841036,-400.0,0.00013972,2]
[360970311,1747171841045,-400.0,0.00013972,2]
[360970312,1747171841055,-400.0,0.00013972,2]
[360970313,1747171841065,-400.0,0.00013972,2]
[360970314,1747171841075,-400.0,0.00013972,2]
[360970315,1747171841084,-400.0,0.00013972,2]
[360970316,1747171841094,-400.0,0.00013972,2]
[360970317,1747171841104,-439.25,0.00013972,2]
[360970318,1747171841118,-400.0,0.00013972,2]
[360970319,1747171841131,-432.91,0.00013972,2]
[360970320,1747171841141,-400.0,0.00013972,2]
[360970321,1747171841152,-400.0,0.00013972,2]
[360970322,1747171841164,-847.75,0.00013972,2]
[360970323,1747171841174,-290.85202705,0.00013972,2]
[360970324,1747171841185,-400.0,0.00013972,2]
[360970325,1747171841196,-400.0,0.00013972,2]
[360970326,1747171841206,-400.0,0.00013972,2]
[360970327,1747171841216,-400.0,0.00013972,2]
[360970328,1747171841226,-656.64,0.00013972,2]
[360970329,1747171841236,-400.0,0.00013972,2]
[360970330,1747171841245,-400.0,0.00013972,2]
[360970331,1747171841255,-400.0,0.00013972,2]
[360970332,1747171841264,-400.0,0.00013972,2]
[360970333,1747171841274,-400.0,0.00013972,2]
[360970334,1747171841283,-400.0,0.00013972,2]
[360970335,1747171841293,-400.0,0.00013972,2]
[360970336,1747171841303,-446.11,0.00013972,2]
[360970337,1747171841312,-400.0,0.00013972,2]
[360970338,1747171841322,-400.0,0.00013972,2]